[Event "January 9 Late 2024"]
[Site "https://www.chess.com"]
[Date "2024.01.09"]
[Round "4"]
[White "Tan, Ralph"]
[Black "Ardila, Oscar Humberto"]
[Result "0-1"]
[Board "157"]
[TimeControl "180+1"]
[WhiteFideId "30966590"]
[BlackFideId "4404742"]
[WhiteElo "2535"]
[BlackElo "2308"]
[WhiteTeam "USA"]
[BlackTeam "COL"]
[WhiteClock "0:00:14"]
[BlackClock "0:00:15"]

1. e4 {[%clk 0:03:00]}  e5 {[%clk 0:02:59]} 2. Nf3 {[%clk 0:03:01]}  Nf6 {[%clk 0:02:59]} 3. Nc3 {[%clk 0:03:00]}  Nc6 {[%clk 0:02:59]} 4. Bb5 {[%clk 0:02:59]}  Bb4 {[%clk 0:02:59]} 5. O-O {[%clk 0:02:59]}  O-O {[%clk 0:02:58]} 6. d3 {[%clk 0:02:50]}  d6 {[%clk 0:02:57]} 7. h3 {[%clk 0:02:50]}  Qe7 {[%clk 0:02:55]} 8. Nd5 {[%clk 0:02:44]}  Nxd5 {[%clk 0:02:52]} 9. exd5 {[%clk 0:02:45]}  Nb8 {[%clk 0:02:46]} 10. c3 {[%clk 0:02:42]}  Ba5 {[%clk 0:02:44]} 11. a4 {[%clk 0:02:36]}  a6 {[%clk 0:02:43]} 12. Bc4 {[%clk 0:02:36]}  Bf5 {[%clk 0:02:37]} 13. Re1 {[%clk 0:02:33]}  Nd7 {[%clk 0:02:33]} 14. Bg5 {[%clk 0:02:18]}  f6 {[%clk 0:02:28]} 15. Bh4 {[%clk 0:02:10]}  Qf7 {[%clk 0:02:22]} 16. Bg3 {[%clk 0:02:03]}  g5 {[%clk 0:02:18]} 17. d4 {[%clk 0:01:56]}  h6 {[%clk 0:02:16]} 18. dxe5 {[%clk 0:01:56]}  Nxe5 {[%clk 0:02:12]} 19. Nxe5 {[%clk 0:01:53]}  fxe5 {[%clk 0:02:10]} 20. Bxe5 {[%clk 0:01:52]}  dxe5 {[%clk 0:02:02]} 21. d6 {[%clk 0:01:52]}  Qxc4 {[%clk 0:02:00]} 22. Rxe5 {[%clk 0:01:46]}  Bg6 {[%clk 0:01:41]} 23. Rxa5 {[%clk 0:01:45]}  cxd6 {[%clk 0:01:34]} 24. Qxd6 {[%clk 0:01:41]}  Qf7 {[%clk 0:01:27]} 25. Kh1 {[%clk 0:01:29]}  Rad8 {[%clk 0:01:26]} 26. Qb6 {[%clk 0:01:25]}  Kg7 {[%clk 0:01:18]} 27. Re1 {[%clk 0:01:20]}  Rde8 {[%clk 0:01:10]} 28. Rd1 {[%clk 0:01:13]}  Re6 {[%clk 0:01:03]} 29. Qd4+ {[%clk 0:01:08]}  Qf6 {[%clk 0:01:00]} 30. Qg4 {[%clk 0:01:03]}  h5 {[%clk 0:00:55]} 31. Qc4 {[%clk 0:00:54]}  Rfe8 {[%clk 0:00:47]} 32. Qf1 {[%clk 0:00:31]}  Re2 {[%clk 0:00:39]} 33. Rad5 {[%clk 0:00:26]}  Qxf2 {[%clk 0:00:33]} 34. Qxf2 {[%clk 0:00:26]}  Rxf2 {[%clk 0:00:33]} 35. Rxg5 {[%clk 0:00:27]}  Ree2 {[%clk 0:00:31]} 36. Rd6 {[%clk 0:00:23]}  Rf6 {[%clk 0:00:26]} 37. Rd7+ {[%clk 0:00:23]}  Kh6 {[%clk 0:00:26]} 38. Rg3 {[%clk 0:00:22]}  Rxb2 {[%clk 0:00:24]} 39. Kh2 {[%clk 0:00:19]}  h4 {[%clk 0:00:23]} 40. Rg4 {[%clk 0:00:19]}  Bf5 {[%clk 0:00:18]} 41. Rxh4+ {[%clk 0:00:17]}  Kg5 {[%clk 0:00:18]} 42. Rh8 {[%clk 0:00:17]}  Bxd7 {[%clk 0:00:17]} 43. Rg8+ {[%clk 0:00:17]}  Kh6 {[%clk 0:00:17]} 44. Kg3 {[%clk 0:00:16]}  Bc6 {[%clk 0:00:16]} 45. Kh4 {[%clk 0:00:16]}  Rxg2 {[%clk 0:00:15]} 46. Rh8+ {[%clk 0:00:14]}  Kg7 {[%clk 0:00:15]} 0-1

[Event "January 9 Late 2024"]
[Site "https://www.chess.com"]
[Date "2024.01.09"]
[Round "4"]
[White "Davidson, Kevin"]
[Black "Lopez Del Alamo, Antonio"]
[Result "1-0"]
[Board "162"]
[TimeControl "180+1"]
[WhiteFideId "2056810"]
[BlackFideId "2227339"]
[WhiteElo "2519"]
[BlackElo "2295"]
[WhiteTeam "USA"]
[BlackTeam "ESP"]
[WhiteClock "0:01:19"]
[BlackClock "0:01:09"]

1. e4 {[%clk 0:03:00]}  c5 {[%clk 0:03:00]} 2. Nf3 {[%clk 0:03:00]}  e6 {[%clk 0:03:00]} 3. d4 {[%clk 0:03:01]}  cxd4 {[%clk 0:03:01]} 4. Nxd4 {[%clk 0:03:01]}  Nf6 {[%clk 0:03:01]} 5. Nc3 {[%clk 0:03:02]}  Nc6 {[%clk 0:03:01]} 6. Ndb5 {[%clk 0:02:59]}  d6 {[%clk 0:03:01]} 7. Bf4 {[%clk 0:02:59]}  e5 {[%clk 0:03:01]} 8. Bg5 {[%clk 0:02:59]}  a6 {[%clk 0:03:02]} 9. Na3 {[%clk 0:02:59]}  b5 {[%clk 0:03:02]} 10. Nd5 {[%clk 0:02:59]}  Be7 {[%clk 0:03:02]} 11. Bxf6 {[%clk 0:02:59]}  Bxf6 {[%clk 0:03:03]} 12. c4 {[%clk 0:02:59]}  b4 {[%clk 0:03:03]} 13. Nc2 {[%clk 0:02:59]}  Rb8 {[%clk 0:03:03]} 14. Qd3 {[%clk 0:02:56]}  O-O {[%clk 0:03:00]} 15. Be2 {[%clk 0:02:54]}  a5 {[%clk 0:02:57]} 16. O-O {[%clk 0:02:54]}  Bg5 {[%clk 0:02:53]} 17. Rad1 {[%clk 0:02:53]}  Be6 {[%clk 0:02:52]} 18. b3 {[%clk 0:02:42]}  Qd7 {[%clk 0:02:49]} 19. Qg3 {[%clk 0:02:32]}  Bd8 {[%clk 0:02:46]} 20. c5 {[%clk 0:02:20]}  Kh8 {[%clk 0:02:27]} 21. cxd6 {[%clk 0:02:12]}  Nd4 {[%clk 0:01:39]} 22. Nxd4 {[%clk 0:02:07]}  Bxd5 {[%clk 0:01:39]} 23. Nf5 {[%clk 0:01:57]}  g6 {[%clk 0:01:34]} 24. Qxe5+ {[%clk 0:01:53]}  f6 {[%clk 0:01:33]} 25. Qxd5 {[%clk 0:01:52]}  gxf5 {[%clk 0:01:34]} 26. exf5 {[%clk 0:01:43]}  Rg8 {[%clk 0:01:23]} 27. Bc4 {[%clk 0:01:38]}  Rg5 {[%clk 0:01:19]} 28. Qe6 {[%clk 0:01:30]}  Qg7 {[%clk 0:01:15]} 29. Qe8+ {[%clk 0:01:23]}  Qg8 {[%clk 0:01:08]} 30. Bxg8 {[%clk 0:01:19]}  Rxg8 {[%clk 0:01:09]} 1-0

[Event "January 9 Late 2024"]
[Site "https://www.chess.com"]
[Date "2024.01.09"]
[Round "4"]
[White "Dilmukhametov, Artur"]
[Black "Senft, Sean"]
[Result "1-0"]
[Board "163"]
[TimeControl "180+1"]
[WhiteFideId "24179922"]
[BlackFideId "2044960"]
[WhiteElo "2291"]
[BlackElo "2517"]
[WhiteTeam "RUS"]
[BlackTeam "USA"]
[WhiteClock "0:00:17"]
[BlackClock "0:00:00"]

1. e4 {[%clk 0:03:00]}  c5 {[%clk 0:03:00]} 2. Nf3 {[%clk 0:03:00]}  d6 {[%clk 0:03:00]} 3. Bb5+ {[%clk 0:02:59]}  Bd7 {[%clk 0:03:00]} 4. Bxd7+ {[%clk 0:03:00]}  Nxd7 {[%clk 0:03:01]} 5. O-O {[%clk 0:03:00]}  Ngf6 {[%clk 0:03:02]} 6. Re1 {[%clk 0:02:57]}  e6 {[%clk 0:03:02]} 7. c3 {[%clk 0:02:58]}  Be7 {[%clk 0:03:03]} 8. d4 {[%clk 0:02:58]}  O-O {[%clk 0:03:04]} 9. h3 {[%clk 0:02:53]}  b5 {[%clk 0:03:03]} 10. a4 {[%clk 0:02:52]}  b4 {[%clk 0:03:01]} 11. Nbd2 {[%clk 0:02:51]}  a5 {[%clk 0:02:59]} 12. Nf1 {[%clk 0:02:50]}  Qc7 {[%clk 0:02:58]} 13. Bf4 {[%clk 0:02:43]}  Qb7 {[%clk 0:02:54]} 14. Ng3 {[%clk 0:02:38]}  Rfd8 {[%clk 0:02:53]} 15. Qe2 {[%clk 0:02:32]}  Nf8 {[%clk 0:02:53]} 16. e5 {[%clk 0:02:25]}  dxe5 {[%clk 0:02:49]} 17. dxe5 {[%clk 0:02:19]}  Nd5 {[%clk 0:02:48]} 18. Bd2 {[%clk 0:02:19]}  Rd7 {[%clk 0:02:16]} 19. c4 {[%clk 0:02:17]}  Nb6 {[%clk 0:02:17]} 20. b3 {[%clk 0:02:17]}  Rad8 {[%clk 0:02:17]} 21. Be3 {[%clk 0:02:13]}  Ng6 {[%clk 0:02:16]} 22. Rad1 {[%clk 0:02:10]}  h6 {[%clk 0:02:15]} 23. Qc2 {[%clk 0:02:02]}  Qc7 {[%clk 0:02:12]} 24. Rxd7 {[%clk 0:02:01]}  Rxd7 {[%clk 0:02:12]} 25. Bc1 {[%clk 0:01:53]}  Qd8 {[%clk 0:02:08]} 26. Ne4 {[%clk 0:01:52]}  Rd3 {[%clk 0:01:57]} 27. Be3 {[%clk 0:01:36]}  Rxe3 {[%clk 0:01:38]} 28. Rxe3 {[%clk 0:01:34]}  Qc7 {[%clk 0:01:38]} 29. g3 {[%clk 0:01:29]}  Nd7 {[%clk 0:01:38]} 30. Qb2 {[%clk 0:01:13]}  Ndxe5 {[%clk 0:01:33]} 31. Nxe5 {[%clk 0:01:13]}  Nxe5 {[%clk 0:01:33]} 32. Kg2 {[%clk 0:00:57]}  Nc6 {[%clk 0:01:30]} 33. f3 {[%clk 0:00:47]}  Nd4 {[%clk 0:01:30]} 34. Nf2 {[%clk 0:00:42]}  Nf5 {[%clk 0:01:29]} 35. Re4 {[%clk 0:00:28]}  Qxg3+ {[%clk 0:01:20]} 36. Kf1 {[%clk 0:00:28]}  Qxf3 {[%clk 0:01:17]} 37. Ke1 {[%clk 0:00:25]}  Ne3 {[%clk 0:01:03]} 38. Qe5 {[%clk 0:00:20]}  Bg5 {[%clk 0:00:59]} 39. h4 {[%clk 0:00:17]}  Ng2+ {[%clk 0:00:39]} 40. Kf1 {[%clk 0:00:17]}  Bxh4 {[%clk 0:00:32]} 41. Rxh4 {[%clk 0:00:11]}  Nxh4 {[%clk 0:00:32]} 42. Qxc5 {[%clk 0:00:12]}  Qxb3 {[%clk 0:00:23]} 43. Qxa5 {[%clk 0:00:13]}  Qxc4+ {[%clk 0:00:22]} 44. Ke1 {[%clk 0:00:13]}  Nf3+ {[%clk 0:00:21]} 45. Kd1 {[%clk 0:00:14]}  Qf1+ {[%clk 0:00:17]} 46. Kc2 {[%clk 0:00:14]}  Qxf2+ {[%clk 0:00:17]} 47. Kb3 {[%clk 0:00:15]}  Qe3+ {[%clk 0:00:16]} 48. Kxb4 {[%clk 0:00:16]}  Qe1+ {[%clk 0:00:16]} 49. Kb5 {[%clk 0:00:16]}  Qxa5+ {[%clk 0:00:14]} 50. Kxa5 {[%clk 0:00:17]}  Ne5 {[%clk 0:00:00]} 51. Kb5 {[%clk 0:00:17]} 1-0

[Event "January 9 Late 2024"]
[Site "https://www.chess.com"]
[Date "2024.01.09"]
[Round "4"]
[White "Espinoza Palomino, Willyam"]
[Black "Bazzano, Sebastian"]
[Result "1-0"]
[Board "166"]
[TimeControl "180+1"]
[WhiteFideId "3804852"]
[BlackFideId "104566"]
[WhiteElo "2515"]
[BlackElo "2267"]
[WhiteTeam "PER"]
[BlackTeam "ARG"]
[WhiteClock "0:00:10"]
[BlackClock "0:00:03"]

1. e4 {[%clk 0:02:54]}  e6 {[%clk 0:02:59]} 2. d4 {[%clk 0:02:53]}  d5 {[%clk 0:02:59]} 3. Nc3 {[%clk 0:02:54]}  dxe4 {[%clk 0:02:59]} 4. Nxe4 {[%clk 0:02:55]}  Bd7 {[%clk 0:03:00]} 5. Nf3 {[%clk 0:02:52]}  Bc6 {[%clk 0:03:00]} 6. Bd3 {[%clk 0:02:53]}  Bxe4 {[%clk 0:03:00]} 7. Bxe4 {[%clk 0:02:53]}  c6 {[%clk 0:03:00]} 8. Bg5 {[%clk 0:02:50]}  Nf6 {[%clk 0:03:01]} 9. Bd3 {[%clk 0:02:47]}  Nbd7 {[%clk 0:03:00]} 10. Qd2 {[%clk 0:02:43]}  Bd6 {[%clk 0:02:59]} 11. O-O-O {[%clk 0:02:42]}  Qc7 {[%clk 0:02:59]} 12. c4 {[%clk 0:02:37]}  h6 {[%clk 0:02:55]} 13. Be3 {[%clk 0:02:36]}  c5 {[%clk 0:02:47]} 14. Kb1 {[%clk 0:02:32]}  Ng4 {[%clk 0:02:26]} 15. Qc2 {[%clk 0:01:53]}  Nxe3 {[%clk 0:02:22]} 16. fxe3 {[%clk 0:01:54]}  O-O-O {[%clk 0:02:14]} 17. g4 {[%clk 0:01:52]}  Kb8 {[%clk 0:01:57]} 18. Rhf1 {[%clk 0:01:52]}  Nf6 {[%clk 0:01:43]} 19. h3 {[%clk 0:01:50]}  Ka8 {[%clk 0:01:31]} 20. Qa4 {[%clk 0:01:45]}  Rc8 {[%clk 0:01:28]} 21. Rc1 {[%clk 0:01:41]}  Rhd8 {[%clk 0:01:27]} 22. Rc3 {[%clk 0:01:38]}  Qc6 {[%clk 0:01:15]} 23. Qc2 {[%clk 0:01:33]}  Qc7 {[%clk 0:01:00]} 24. Rb3 {[%clk 0:01:30]}  Re8 {[%clk 0:00:45]} 25. Rb5 {[%clk 0:01:29]}  e5 {[%clk 0:00:43]} 26. Bf5 {[%clk 0:01:03]}  Rcd8 {[%clk 0:00:35]} 27. d5 {[%clk 0:00:57]}  g6 {[%clk 0:00:28]} 28. Be4 {[%clk 0:00:57]}  Nxe4 {[%clk 0:00:21]} 29. Qxe4 {[%clk 0:00:58]}  Rf8 {[%clk 0:00:22]} 30. Nd2 {[%clk 0:00:48]}  Qd7 {[%clk 0:00:21]} 31. Qg2 {[%clk 0:00:27]}  f5 {[%clk 0:00:21]} 32. e4 {[%clk 0:00:25]}  fxe4 {[%clk 0:00:16]} 33. Nxe4 {[%clk 0:00:24]}  Rxf1+ {[%clk 0:00:12]} 34. Qxf1 {[%clk 0:00:25]}  Rf8 {[%clk 0:00:13]} 35. Qe2 {[%clk 0:00:26]}  Rf4 {[%clk 0:00:13]} 36. Rb3 {[%clk 0:00:24]}  a6 {[%clk 0:00:12]} 37. Rf3 {[%clk 0:00:23]}  g5 {[%clk 0:00:11]} 38. Re3 {[%clk 0:00:21]}  Qe7 {[%clk 0:00:10]} 39. a3 {[%clk 0:00:20]}  Bb8 {[%clk 0:00:09]} 40. Ng3 {[%clk 0:00:20]}  Bd6 {[%clk 0:00:09]} 41. Nf5 {[%clk 0:00:20]}  Qf6 {[%clk 0:00:09]} 42. Qd3 {[%clk 0:00:18]}  Ka7 {[%clk 0:00:08]} 43. Ka2 {[%clk 0:00:18]}  Ka8 {[%clk 0:00:08]} 44. Qb3 {[%clk 0:00:18]}  Ka7 {[%clk 0:00:08]} 45. a4 {[%clk 0:00:17]}  b6 {[%clk 0:00:07]} 46. a5 {[%clk 0:00:16]}  Bc7 {[%clk 0:00:07]} 47. axb6+ {[%clk 0:00:15]}  Qxb6 {[%clk 0:00:07]} 48. d6 {[%clk 0:00:13]}  Bd8 {[%clk 0:00:06]} 49. Qxb6+ {[%clk 0:00:12]}  Kxb6 {[%clk 0:00:06]} 50. Rxe5 {[%clk 0:00:13]}  Rf3 {[%clk 0:00:05]} 51. Nxh6 {[%clk 0:00:11]}  Rxh3 {[%clk 0:00:05]} 52. Nf7 {[%clk 0:00:11]}  Bf6 {[%clk 0:00:05]} 53. Re6 {[%clk 0:00:10]}  Bd4 {[%clk 0:00:03]} 54. d7+ {[%clk 0:00:10]} 1-0

[Event "January 9 Late 2024"]
[Site "https://www.chess.com"]
[Date "2024.01.09"]
[Round "4"]
[White "Kornyukov, Alexey"]
[Black "Salman, Ilhan Serhat"]
[Result "1-0"]
[Board "167"]
[TimeControl "180+1"]
[WhiteFideId "4150457"]
[BlackFideId "6361579"]
[WhiteElo "2261"]
[BlackElo "2512"]
[WhiteTeam "RUS"]
[BlackTeam "TUR"]
[WhiteClock "0:00:03"]
[BlackClock "0:00:00"]

1. d4 {[%clk 0:02:59]}  Nf6 {[%clk 0:02:59]} 2. Nc3 {[%clk 0:02:57]}  d5 {[%clk 0:02:54]} 3. Bg5 {[%clk 0:02:50]}  a6 {[%clk 0:02:48]} 4. Qd2 {[%clk 0:02:29]}  Bf5 {[%clk 0:02:46]} 5. f3 {[%clk 0:02:29]}  Nbd7 {[%clk 0:02:40]} 6. O-O-O {[%clk 0:02:19]}  h6 {[%clk 0:02:39]} 7. Bh4 {[%clk 0:02:13]}  e6 {[%clk 0:02:21]} 8. e4 {[%clk 0:02:11]}  dxe4 {[%clk 0:02:22]} 9. fxe4 {[%clk 0:02:06]}  Bg4 {[%clk 0:02:21]} 10. Nf3 {[%clk 0:02:01]}  g5 {[%clk 0:02:05]} 11. Bf2 {[%clk 0:01:52]}  Bb4 {[%clk 0:02:04]} 12. Bd3 {[%clk 0:01:46]}  Qe7 {[%clk 0:02:02]} 13. h4 {[%clk 0:01:43]}  O-O-O {[%clk 0:01:49]} 14. hxg5 {[%clk 0:01:29]}  hxg5 {[%clk 0:01:50]} 15. Qxg5 {[%clk 0:01:28]}  Bxc3 {[%clk 0:01:43]} 16. bxc3 {[%clk 0:01:29]}  Qa3+ {[%clk 0:01:42]} 17. Kd2 {[%clk 0:01:25]}  Rhg8 {[%clk 0:01:38]} 18. Qf4 {[%clk 0:01:21]}  Nh5 {[%clk 0:01:12]} 19. Qe3 {[%clk 0:01:09]}  Nb6 {[%clk 0:01:00]} 20. Rb1 {[%clk 0:00:59]}  Qa5 {[%clk 0:00:33]} 21. Ne5 {[%clk 0:00:52]}  Qxe5 {[%clk 0:00:24]} 22. Rxb6 {[%clk 0:00:30]}  Qg5 {[%clk 0:00:16]} 23. Rbb1 {[%clk 0:00:23]}  Qg7 {[%clk 0:00:16]} 24. Bh4 {[%clk 0:00:17]}  Rd7 {[%clk 0:00:14]} 25. e5 {[%clk 0:00:15]}  Bf5 {[%clk 0:00:12]} 26. Rhf1 {[%clk 0:00:15]}  Qxg2+ {[%clk 0:00:12]} 27. Rf2 {[%clk 0:00:15]}  Qg4 {[%clk 0:00:12]} 28. Rh2 {[%clk 0:00:12]}  Bxd3 {[%clk 0:00:11]} 29. cxd3 {[%clk 0:00:12]}  Nf4 {[%clk 0:00:11]} 30. Bf6 {[%clk 0:00:11]}  Qf5 {[%clk 0:00:09]} 31. Rf2 {[%clk 0:00:10]}  Rg4 {[%clk 0:00:08]} 32. Rbf1 {[%clk 0:00:10]}  Qg6 {[%clk 0:00:06]} 33. Rxf4 {[%clk 0:00:10]}  Rg2+ {[%clk 0:00:05]} 34. R4f2 {[%clk 0:00:11]}  Rg3 {[%clk 0:00:06]} 35. Qe2 {[%clk 0:00:11]}  c5 {[%clk 0:00:05]} 36. Rf3 {[%clk 0:00:08]}  Rg2 {[%clk 0:00:05]} 37. R1f2 {[%clk 0:00:08]}  Rg4 {[%clk 0:00:06]} 38. Rf4 {[%clk 0:00:07]}  Rg3 {[%clk 0:00:06]} 39. Kc2 {[%clk 0:00:06]}  c4 {[%clk 0:00:06]} 40. Qe4 {[%clk 0:00:05]}  cxd3+ {[%clk 0:00:06]} 41. Kd2 {[%clk 0:00:05]}  Qxe4 {[%clk 0:00:05]} 42. Rxe4 {[%clk 0:00:05]}  Rh3 {[%clk 0:00:05]} 43. Re3 {[%clk 0:00:05]}  Rh5 {[%clk 0:00:04]} 44. Kxd3 {[%clk 0:00:06]}  b5 {[%clk 0:00:05]} 45. Rg3 {[%clk 0:00:06]}  Kb7 {[%clk 0:00:05]} 46. Rg8 {[%clk 0:00:06]}  Rh3+ {[%clk 0:00:06]} 47. Kc2 {[%clk 0:00:06]}  Rc7 {[%clk 0:00:06]} 48. Kb2 {[%clk 0:00:05]}  Rhxc3 {[%clk 0:00:07]} 49. Rd2 {[%clk 0:00:05]}  R3c4 {[%clk 0:00:07]} 50. d5 {[%clk 0:00:05]}  exd5 {[%clk 0:00:08]} 51. Rxd5 {[%clk 0:00:05]}  Rb4+ {[%clk 0:00:09]} 52. Ka3 {[%clk 0:00:04]}  Ra4+ {[%clk 0:00:09]} 53. Kb3 {[%clk 0:00:03]}  Re4 {[%clk 0:00:10]} 54. Rd3 {[%clk 0:00:03]}  a5 {[%clk 0:00:09]} 55. Rgd8 {[%clk 0:00:03]}  a4+ {[%clk 0:00:09]} 56. Ka3 {[%clk 0:00:03]}  Ka6 {[%clk 0:00:09]} 57. R8d6+ {[%clk 0:00:03]}  Kb7 {[%clk 0:00:09]} 58. Bd8 {[%clk 0:00:03]}  Rc8 {[%clk 0:00:08]} 59. Rd7+ {[%clk 0:00:03]}  Ka8 {[%clk 0:00:08]} 60. Bf6 {[%clk 0:00:03]}  b4+ {[%clk 0:00:08]} 61. Kxa4 {[%clk 0:00:03]}  Rb8 {[%clk 0:00:07]} 62. Kb3 {[%clk 0:00:03]}  Rc8 {[%clk 0:00:07]} 63. R3d5 {[%clk 0:00:03]}  Rc3+ {[%clk 0:00:07]} 64. Ka4 {[%clk 0:00:03]}  Ra3+ {[%clk 0:00:00]} 65. Kb5 {[%clk 0:00:03]} 1-0

[Event "January 9 Late 2024"]
[Site "https://www.chess.com"]
[Date "2024.01.09"]
[Round "4"]
[White "Novikova, Galina"]
[Black "Gonzalez Vega, Alejandro"]
[Result "1-0"]
[Board "172"]
[TimeControl "180+1"]
[WhiteFideId "4157095"]
[BlackFideId "3510042"]
[WhiteElo "2501"]
[BlackElo "2242"]
[WhiteTeam "RUS"]
[BlackTeam "CUB"]
[WhiteClock "0:00:52"]
[BlackClock "0:00:00"]

1. e4 {[%clk 0:03:00]}  c5 {[%clk 0:02:59]} 2. Nf3 {[%clk 0:03:01]}  a6 {[%clk 0:02:58]} 3. b4 {[%clk 0:03:01]}  cxb4 {[%clk 0:02:57]} 4. a3 {[%clk 0:03:02]}  d5 {[%clk 0:02:56]} 5. e5 {[%clk 0:03:02]}  Nc6 {[%clk 0:02:53]} 6. axb4 {[%clk 0:03:02]}  Nxb4 {[%clk 0:02:52]} 7. c3 {[%clk 0:03:03]}  Nc6 {[%clk 0:02:52]} 8. d4 {[%clk 0:03:03]}  Bg4 {[%clk 0:02:51]} 9. Bd3 {[%clk 0:03:01]}  e6 {[%clk 0:02:51]} 10. h3 {[%clk 0:03:01]}  Bh5 {[%clk 0:02:50]} 11. O-O {[%clk 0:02:59]}  Rc8 {[%clk 0:02:45]} 12. Bf4 {[%clk 0:02:55]}  Nge7 {[%clk 0:02:43]} 13. Nbd2 {[%clk 0:02:55]}  Bg6 {[%clk 0:02:39]} 14. Be2 {[%clk 0:02:53]}  h6 {[%clk 0:02:36]} 15. Qb3 {[%clk 0:02:52]}  Qd7 {[%clk 0:02:22]} 16. c4 {[%clk 0:02:38]}  Bh7 {[%clk 0:02:10]} 17. Bg3 {[%clk 0:02:33]}  g5 {[%clk 0:02:09]} 18. Bd3 {[%clk 0:02:16]}  Bxd3 {[%clk 0:02:08]} 19. Qxd3 {[%clk 0:02:17]}  Bg7 {[%clk 0:01:27]} 20. Rfb1 {[%clk 0:02:13]}  O-O {[%clk 0:01:23]} 21. c5 {[%clk 0:02:11]}  Na7 {[%clk 0:01:16]} 22. h4 {[%clk 0:02:07]}  g4 {[%clk 0:01:13]} 23. Ne1 {[%clk 0:02:04]}  Nf5 {[%clk 0:01:06]} 24. Nc2 {[%clk 0:02:00]}  Nb5 {[%clk 0:01:01]} 25. Nb3 {[%clk 0:01:48]}  Rc7 {[%clk 0:00:55]} 26. h5 {[%clk 0:01:38]}  Rd8 {[%clk 0:00:40]} 27. Ne3 {[%clk 0:01:35]}  Nxg3 {[%clk 0:00:38]} 28. fxg3 {[%clk 0:01:35]}  Qe7 {[%clk 0:00:38]} 29. Nxg4 {[%clk 0:01:35]}  Qg5 {[%clk 0:00:38]} 30. Qf3 {[%clk 0:01:30]}  Kh8 {[%clk 0:00:25]} 31. Qf4 {[%clk 0:01:25]}  Nc3 {[%clk 0:00:22]} 32. Qxg5 {[%clk 0:01:23]}  hxg5 {[%clk 0:00:21]} 33. h6 {[%clk 0:01:23]}  Bf8 {[%clk 0:00:21]} 34. Rf1 {[%clk 0:01:14]}  Ne2+ {[%clk 0:00:20]} 35. Kf2 {[%clk 0:01:11]}  Nc3 {[%clk 0:00:18]} 36. Ke3 {[%clk 0:01:11]}  Ne4 {[%clk 0:00:18]} 37. Rf3 {[%clk 0:01:09]}  Kh7 {[%clk 0:00:17]} 38. Nd2 {[%clk 0:01:09]}  Kg6 {[%clk 0:00:17]} 39. Nxe4 {[%clk 0:01:06]}  dxe4 {[%clk 0:00:17]} 40. Kxe4 {[%clk 0:01:07]}  Bxh6 {[%clk 0:00:17]} 41. Rf6+ {[%clk 0:01:06]}  Kg7 {[%clk 0:00:16]} 42. Nxh6 {[%clk 0:01:06]}  Rcd7 {[%clk 0:00:14]} 43. Rd1 {[%clk 0:01:07]}  a5 {[%clk 0:00:13]} 44. Ng4 {[%clk 0:01:07]}  Ra8 {[%clk 0:00:10]} 45. Rf3 {[%clk 0:01:04]}  a4 {[%clk 0:00:10]} 46. Ra3 {[%clk 0:01:05]}  Rd5 {[%clk 0:00:09]} 47. Ne3 {[%clk 0:01:04]}  Rd7 {[%clk 0:00:08]} 48. Rda1 {[%clk 0:01:05]}  b5 {[%clk 0:00:06]} 49. cxb6 {[%clk 0:01:05]}  Rb7 {[%clk 0:00:06]} 50. Rxa4 {[%clk 0:01:06]}  Rxa4 {[%clk 0:00:06]} 51. Rxa4 {[%clk 0:01:07]}  Rxb6 {[%clk 0:00:07]} 52. Ra8 {[%clk 0:01:03]}  Rb2 {[%clk 0:00:07]} 53. Kf3 {[%clk 0:01:01]}  Rb3 {[%clk 0:00:07]} 54. g4 {[%clk 0:01:00]}  Rd3 {[%clk 0:00:06]} 55. Ke4 {[%clk 0:01:00]}  Rd2 {[%clk 0:00:07]} 56. Ra5 {[%clk 0:00:57]}  Re2 {[%clk 0:00:06]} 57. d5 {[%clk 0:00:55]}  exd5+ {[%clk 0:00:06]} 58. Rxd5 {[%clk 0:00:56]}  Re1 {[%clk 0:00:05]} 59. Kf3 {[%clk 0:00:56]}  Ra1 {[%clk 0:00:02]} 60. Nf5+ {[%clk 0:00:57]}  Kg6 {[%clk 0:00:01]} 61. Rd6+ {[%clk 0:00:58]}  Kh7 {[%clk 0:00:02]} 62. Rh6+ {[%clk 0:00:56]}  Kg8 {[%clk 0:00:01]} 63. Rb6 {[%clk 0:00:57]}  Ra2 {[%clk 0:00:01]} 64. Rb7 {[%clk 0:00:51]}  Ra3+ {[%clk 0:00:01]} 65. Kf2 {[%clk 0:00:51]}  Ra2+ {[%clk 0:00:01]} 66. Kg3 {[%clk 0:00:52]}  Ra3+ {[%clk 0:00:01]} 67. Kh2 {[%clk 0:00:53]}  Ra2 {[%clk 0:00:00]} 68. Nh6+ {[%clk 0:00:52]} 1-0

[Event "January 9 Late 2024"]
[Site "https://www.chess.com"]
[Date "2024.01.09"]
[Round "4"]
[White "Gryshko, Vitalii"]
[Black "Ferriz Barrios, Andres"]
[Result "1-0"]
[Board "174"]
[TimeControl "180+1"]
[WhiteFideId "14174286"]
[BlackFideId "5104467"]
[WhiteElo "2498"]
[BlackElo "2228"]
[WhiteTeam "UKR"]
[BlackTeam "MEX"]
[WhiteClock "0:01:32"]
[BlackClock "0:01:03"]

1. c4 {[%clk 0:03:00]}  e5 {[%clk 0:02:50]} 2. d3 {[%clk 0:03:01]}  Nf6 {[%clk 0:02:50]} 3. Nf3 {[%clk 0:03:01]}  Bd6 {[%clk 0:02:46]} 4. a3 {[%clk 0:03:01]}  O-O {[%clk 0:02:46]} 5. Nc3 {[%clk 0:03:01]}  c6 {[%clk 0:02:46]} 6. g3 {[%clk 0:03:02]}  Bc7 {[%clk 0:02:46]} 7. Bg2 {[%clk 0:03:02]}  d5 {[%clk 0:02:47]} 8. d4 {[%clk 0:02:54]}  exd4 {[%clk 0:02:42]} 9. Qxd4 {[%clk 0:02:51]}  dxc4 {[%clk 0:02:42]} 10. Qxc4 {[%clk 0:02:52]}  Be6 {[%clk 0:02:41]} 11. Qh4 {[%clk 0:02:51]}  Nd5 {[%clk 0:02:38]} 12. Ng5 {[%clk 0:02:49]}  h6 {[%clk 0:02:37]} 13. Nxe6 {[%clk 0:02:44]}  fxe6 {[%clk 0:02:38]} 14. Qxd8 {[%clk 0:02:42]}  Rxd8 {[%clk 0:02:37]} 15. Ne4 {[%clk 0:02:43]}  Nd7 {[%clk 0:02:36]} 16. O-O {[%clk 0:02:43]}  N5f6 {[%clk 0:02:35]} 17. Be3 {[%clk 0:02:38]}  Nxe4 {[%clk 0:02:33]} 18. Bxe4 {[%clk 0:02:39]}  Nf6 {[%clk 0:02:34]} 19. Bf3 {[%clk 0:02:39]}  Nd5 {[%clk 0:02:32]} 20. Bd4 {[%clk 0:02:37]}  e5 {[%clk 0:02:30]} 21. Bc5 {[%clk 0:02:37]}  b6 {[%clk 0:02:29]} 22. Bb4 {[%clk 0:02:37]}  a5 {[%clk 0:02:18]} 23. Bd2 {[%clk 0:02:37]}  Kf7 {[%clk 0:02:14]} 24. Rad1 {[%clk 0:02:36]}  Ne7 {[%clk 0:02:09]} 25. Bc3 {[%clk 0:02:32]}  g6 {[%clk 0:02:01]} 26. Rc1 {[%clk 0:02:32]}  Rac8 {[%clk 0:01:56]} 27. Rfd1 {[%clk 0:02:32]}  Rxd1+ {[%clk 0:01:54]} 28. Rxd1 {[%clk 0:02:32]}  Rd8 {[%clk 0:01:54]} 29. Rxd8 {[%clk 0:02:30]}  Bxd8 {[%clk 0:01:54]} 30. Bxe5 {[%clk 0:02:31]}  Ke6 {[%clk 0:01:54]} 31. Bd4 {[%clk 0:02:28]}  c5 {[%clk 0:01:55]} 32. Be3 {[%clk 0:02:26]}  h5 {[%clk 0:01:55]} 33. Bg5 {[%clk 0:02:26]}  Bc7 {[%clk 0:01:54]} 34. Be4 {[%clk 0:02:23]}  Be5 {[%clk 0:01:53]} 35. b3 {[%clk 0:02:21]}  Nf5 {[%clk 0:01:48]} 36. Bd3 {[%clk 0:02:18]}  Bb2 {[%clk 0:01:47]} 37. a4 {[%clk 0:02:15]}  Bd4 {[%clk 0:01:46]} 38. e3 {[%clk 0:02:15]}  Bc3 {[%clk 0:01:44]} 39. Bd8 {[%clk 0:02:14]}  h4 {[%clk 0:01:27]} 40. Bxb6 {[%clk 0:02:04]}  hxg3 {[%clk 0:01:22]} 41. hxg3 {[%clk 0:01:59]}  Bb4 {[%clk 0:01:21]} 42. g4 {[%clk 0:01:53]}  Nh6 {[%clk 0:01:17]} 43. f3 {[%clk 0:01:51]}  Nf7 {[%clk 0:01:17]} 44. Bxg6 {[%clk 0:01:49]}  Ne5 {[%clk 0:01:18]} 45. Bf5+ {[%clk 0:01:48]}  Kd6 {[%clk 0:01:16]} 46. Kf2 {[%clk 0:01:44]}  c4 {[%clk 0:01:11]} 47. bxc4 {[%clk 0:01:44]}  Nxc4 {[%clk 0:01:12]} 48. Bd4 {[%clk 0:01:43]}  Bc5 {[%clk 0:01:08]} 49. Bxc5+ {[%clk 0:01:36]}  Kxc5 {[%clk 0:01:09]} 50. g5 {[%clk 0:01:36]}  Kd6 {[%clk 0:01:08]} 51. f4 {[%clk 0:01:35]}  Ke7 {[%clk 0:01:07]} 52. Kf3 {[%clk 0:01:34]}  Nb6 {[%clk 0:01:06]} 53. Bc2 {[%clk 0:01:33]}  Nd5 {[%clk 0:01:06]} 54. f5 {[%clk 0:01:33]}  Kf7 {[%clk 0:01:03]} 55. Bb3 {[%clk 0:01:32]} 1-0